[Event "FIDE WCCC Girls-10 2024"]
[Site "Montesilvano"]
[Date "2024.11.25"]
[Round "10.18"]
[White "Ahmadli, Mehriban"]
[Black "Meng, Miranda"]
[Result "1/2-1/2"]
[ECO "B15"]
[WhiteElo "1624"]
[BlackElo "1675"]
[Annotator "NA RC"]
[PlyCount "135"]
[EventDate "2024.11.18"]
[EventType "swiss"]
[EventCountry "ITA"]
[SourceTitle "playchess.com"]
[Source "ChessBase"]
[SourceQuality "1"]
[TimeControl "5400+30"]

1. e4 {[%emt 0:00:00]} c6 {[%emt 0:00:00]} 2. d4 {[%emt 0:00:24]} d5 {[%emt 0:00:00]} 3. Nc3 {[%emt 0:00:30]} dxe4 {[%emt 0:00:00]} 4. Nxe4 {[%emt 0:00:30]} Nf6 {[%emt 0:00:00]} 5. Nxf6+ {[%emt 0:00:30]} exf6 {[%emt 0:00:00]} 6. c3 {[%emt 0:00:30]} Bd6 {[%emt 0:00:00]} 7. Bd3 {[%emt 0:00:30]} O-O {[%emt 0:00:00]} 8. Ne2 {[%emt 0:00:30]} Re8 {[%emt 0:00:07]} 9. Qc2 {[%emt 0:00:30]} h5 10. O-O {[%emt 0:00:30]} h4 {[%emt 0:01:00]} 11. Bf4 {[%emt 0:03:06]} Bxf4 {[%emt 0:01:44]} 12. Nxf4 {[%emt 0:00:01]} Qd6 {[%emt 0:01:05]} 13. Qd2 {[%emt 0:00:41]} Nd7 {[%emt 0:04:48]} 14. Rfe1 {[%emt 0:00:49]} Rd8 {[%emt 0:01:04]} 15. g3 {[%emt 0:06:56]} Nf8 {[%emt 0:07:28]} 16. Bc2 {[%emt 0:07:16]} b6 {[%emt 0:07:16]} 17. Qd3 {[%emt 0:03:52]} g6 {[%emt 0:01:50]} 18. Qf3 {[%emt 0:00:57]} Nh7 {[%emt 0:05:01]} 19. gxh4 {[%emt 0:04:06]} Bb7 {[%emt 0:02:32]} 20. Qg4 {[%emt 0:08:19]} Kh8 {[%emt 0:07:33]} 21. Re3 {[%emt 0:16:17]} f5 {[%emt 0:04:43]} 22. Qg3 {[%emt 0:02:50]} c5 {[%emt 0:07:13]} 23. dxc5 {[%emt 0:07:25]} Qxc5 {[%emt 0:05:23]} 24. Rae1 {[%emt 0:03:59]} Qc6 {[%emt 0:11:43]} 25. f3 {[%emt 0:03:40]} Re8 {[%emt 0:03:39]} 26. Bb3 {[%emt 0:06:48]} g5 {[%emt 0:12:20]} 27. hxg5 {[%emt 0:01:37]} Rxe3 {[%emt 0:03:03]} 28. Rxe3 {[%emt 0:00:01]} Qc5 {[%emt 0:01:25]} 29. Ng2 {[%emt 0:08:40]} Re8 {[%emt 0:01:56]} 30. Qf2 {[%emt 0:00:51]} Rxe3 {[%emt 0:00:17]} 31. Qxe3 {[%emt 0:01:37]} Nxg5 {[%emt 0:00:47]} 32. Qxc5 {[%emt 0:00:58]} Nxf3+ {[%emt 0:00:11]} 33. Kf2 {[%emt 0:00:01]} bxc5 {[%emt 0:00:02]} 34. Bxf7 {[%emt 0:01:38]} Nxh2 {[%emt 0:01:03]} 35. Ne3 {[%emt 0:01:49]} f4 {[%emt 0:03:28]} 36. Nd5 {[%emt 0:03:25]} Ng4+ {[%emt 0:01:21]} 37. Kg1 {[%emt 0:01:32]} Ne5 {[%emt 0:02:09]} 38. Be6 {[%emt 0:00:37]} f3 {[%emt 0:02:03]} 39. Kf2 {[%emt 0:01:53]} Kg7 {[%emt 0:01:32]} 40. Nf4 {[%emt 0:01:16]} Kf6 {[%emt 0:01:06]} 41. Bh3 {[%emt 0:00:26]} c4 {[%emt 0:00:54]} 42. Ke3 {[%emt 0:01:45]} Kg5 {[%emt 0:01:12]} 43. Ne6+ {[%emt 0:01:21]} Kh4 {[%emt 0:00:36]} 44. Bf1 {[%emt 0:00:11]} Kg3 {[%emt 0:00:34]} 45. Ng5 {[%emt 0:01:08]} f2 {[%emt 0:01:02]} 46. Kd2 {[%emt 0:00:44]} Bg2 {[%emt 0:01:14]} 47. Ke2 {[%emt 0:00:24]} Nd3 {[%emt 0:00:25]} 48. a4 {[%emt 0:00:38]} Nf4+ {[%emt 0:00:07]} 49. Ke3 {[%emt 0:00:17]} Bxf1 {[%emt 0:00:29]} 50. Ne4+ {[%emt 0:00:06]} Kg4 {[%emt 0:00:23]} 51. Nxf2+ {[%emt 0:00:11]} Kf5 {[%emt 0:00:24]} 52. Ne4 {[%emt 0:00:16]} Nd5+ {[%emt 0:00:44]} 53. Kd4 {[%emt 0:00:01]} Nb6 {[%emt 0:00:53]} 54. Ng3+ {[%emt 0:00:11]} Ke6 {[%emt 0:00:18]} 55. Nxf1 {[%emt 0:00:14]} Nxa4 {[%emt 0:00:15]} 56. Kxc4 {[%emt 0:00:09]} Nxb2+ {[%emt 0:00:16]} 57. Kb5 {[%emt 0:00:09]} Nd1 {[%emt 0:00:12]} 58. c4 {[%emt 0:00:10]} Kd6 {[%emt 0:00:18]} 59. Nd2 {[%emt 0:00:19]} Ne3 {[%emt 0:00:23]} 60. Ne4+ {[%emt 0:00:56]} Kc7 {[%emt 0:00:20]} 61. Nc5 {[%emt 0:00:39]} Nxc4 {[%emt 0:00:18]} 62. Kxc4 {[%emt 0:00:41]} Kb6 {[%emt 0:00:11]} 63. Na4+ {[%emt 0:00:05]} Kc6 {[%emt 0:00:10]} 64. Kb4 {[%emt 0:00:04]} Kb7 {[%emt 0:00:10]} 65. Kb5 {[%emt 0:00:06]} a6+ {[%emt 0:00:05]} 66. Ka5 {[%emt 0:00:04]} Ka7 {[%emt 0:00:09]} 67. Nc5 {[%emt 0:00:01]} Kb8 {[%emt 0:00:07]} 68. Nxa6+ {[%emt 0:00:07]} 1/2-1/2

[Event "FIDE WCCC Girls-10 2024"]
[Site "Montesilvano"]
[Date "2024.11.25"]
[Round "10.19"]
[White "Isakhanyan, Nare"]
[Black "Constantin-Ciuntu, Anne-Sophie"]
[Result "0-1"]
[ECO "A53"]
[WhiteElo "1540"]
[BlackElo "1672"]
[Annotator "NA RC"]
[PlyCount "92"]
[EventDate "2024.11.18"]
[EventType "swiss"]
[EventCountry "ITA"]
[SourceTitle "playchess.com"]
[Source "ChessBase"]
[SourceQuality "1"]
[TimeControl "5400+30"]

1. c4 {[%emt 0:00:01]} d6 {[%emt 0:00:07]} 2. Nc3 {[%emt 0:00:13]} Nf6 {[%emt 0:00:08]} 3. d4 {[%emt 0:01:00]} Nbd7 {[%emt 0:00:24]} 4. e4 {[%emt 0:01:37]} e5 {[%emt 0:00:17]} 5. d5 {[%emt 0:00:48]} Be7 {[%emt 0:01:42]} 6. Nf3 {[%emt 0:03:06]} Nc5 {[%emt 0:02:27]} 7. Bd3 {[%emt 0:06:08]} Nxd3+ {[%emt 0:05:52]} 8. Qxd3 {[%emt 0:00:08]} Bg4 {[%emt 0:00:56]} 9. O-O {[%emt 0:01:14]} O-O {[%emt 0:01:06]} 10. Bd2 {[%emt 0:09:45]} c6 {[%emt 0:03:00]} 11. Ne2 {[%emt 0:07:26]} Qd7 {[%emt 0:05:50]} 12. Ng3 {[%emt 0:06:13]} Nh5 {[%emt 0:10:48]} 13. Nxh5 {[%emt 0:02:38]} Bxh5 {[%emt 0:00:34]} 14. dxc6 {[%emt 0:01:16]} Qxc6 {[%emt 0:00:33]} 15. b3 {[%emt 0:04:34]} f5 {[%emt 0:03:17]} 16. Qd5+ {[%emt 0:08:54]} Qxd5 {[%emt 0:01:16]} 17. exd5 {[%emt 0:00:31]} Bxf3 {[%emt 0:01:39]} 18. gxf3 {[%emt 0:02:11]} f4 {[%emt 0:00:14]} 19. a4 {[%emt 0:04:52]} Rf5 {[%emt 0:01:50]} 20. Rfe1 {[%emt 0:06:49]} Raf8 {[%emt 0:02:04]} 21. h3 {[%emt 0:12:39]} R8f6 {[%emt 0:03:15]} 22. Re2 {[%emt 0:04:55]} Rh5 {[%emt 0:02:01]} 23. Rae1 {[%emt 0:10:06]} Rxh3 {[%emt 0:00:30]} 24. Kg2 {[%emt 0:00:32]} Rhh6 {[%emt 0:00:45]} 25. Re4 {[%emt 0:00:45]} Rfg6+ {[%emt 0:00:38]} 26. Kf1 {[%emt 0:00:06]} Rh1+ {[%emt 0:00:35]} 27. Ke2 {[%emt 0:00:08]} Rxe1+ {[%emt 0:00:44]} 28. Kxe1 {[%emt 0:03:08]} Rg1+ {[%emt 0:00:42]} 29. Ke2 {[%emt 0:00:14]} Kf7 {[%emt 0:01:12]} 30. Bc3 {[%emt 0:01:05]} h5 {[%emt 0:01:08]} 31. Kd2 {[%emt 0:00:36]} h4 {[%emt 0:03:21]} 32. Re1 {[%emt 0:00:14]} Rxe1 {[%emt 0:00:48]} 33. Kxe1 {[%emt 0:00:08]} Kf6 {[%emt 0:00:30]} 34. Kf1 {[%emt 0:02:46]} Kf5 {[%emt 0:00:33]} 35. Kg2 {[%emt 0:00:22]} g5 {[%emt 0:00:49]} 36. Kh3 {[%emt 0:00:45]} e4 {[%emt 0:00:49]} 37. fxe4+ {[%emt 0:00:30]} Kxe4 {[%emt 0:00:02]} 38. Kg4 {[%emt 0:00:33]} Kd3 {[%emt 0:00:40]} 39. Ba5 {[%emt 0:00:28]} b6 {[%emt 0:00:49]} 40. Bb4 {[%emt 0:00:26]} a5 {[%emt 0:00:27]} 41. Be1 {[%emt 0:00:08]} Ke2 {[%emt 0:00:41]} 42. Bc3 {[%emt 0:00:20]} Kxf2 {[%emt 0:00:32]} 43. Bd4+ {[%emt 0:00:24]} Kg2 {[%emt 0:00:08]} 44. Bxb6 {[%emt 0:00:30]} h3 {[%emt 0:00:08]} 45. Bg1 {[%emt 0:01:14]} Kxg1 {[%emt 0:00:07]} 46. Kxh3 {[%emt 0:00:05]} f3 {[%emt 0:00:07]} 0-1

[Event "FIDE WCCC Girls-10 2024"]
[Site "Montesilvano"]
[Date "2024.11.25"]
[Round "10.20"]
[White "Tykalova, Barbora"]
[Black "Wang, Yi Xuan"]
[Result "1-0"]
[ECO "B39"]
[WhiteElo "1596"]
[BlackElo "1668"]
[Annotator "NA RC"]
[PlyCount "73"]
[EventDate "2024.11.18"]
[EventType "swiss"]
[EventCountry "ITA"]
[SourceTitle "playchess.com"]
[Source "ChessBase"]
[SourceQuality "1"]
[TimeControl "5400+30"]

1. e4 {[%emt 0:00:04]} c5 {[%emt 0:00:15]} 2. Nf3 {[%emt 0:00:43]} g6 {[%emt 0:00:15]} 3. d4 {[%emt 0:00:26]} cxd4 {[%emt 0:00:07]} 4. Nxd4 {[%emt 0:00:31]} Bg7 {[%emt 0:00:08]} 5. c4 {[%emt 0:00:31]} Nc6 {[%emt 0:00:13]} 6. Be3 {[%emt 0:01:20]} Nf6 {[%emt 0:00:10]} 7. Nc3 {[%emt 0:01:32]} Ng4 {[%emt 0:00:39]} 8. Qxg4 {[%emt 0:01:35]} Nxd4 {[%emt 0:00:16]} 9. Qd1 {[%emt 0:01:30]} Ne6 {[%emt 0:04:14]} 10. Rc1 {[%emt 0:01:29]} b6 {[%emt 0:10:31]} 11. g3 {[%emt 0:03:36]} Bb7 {[%emt 0:00:33]} 12. Bg2 {[%emt 0:02:29]} Rc8 {[%emt 0:04:53]} 13. b3 {[%emt 0:02:21]} O-O {[%emt 0:02:06]} 14. O-O {[%emt 0:02:29]} Nc5 {[%emt 0:03:22]} 15. Re1 {[%emt 0:13:27]} h5 {[%emt 0:20:10]} 16. Qd2 {[%emt 0:07:51]} e6 {[%emt 0:02:51]} 17. Bh6 {[%emt 0:02:53]} Bxh6 {[%emt 0:00:38]} 18. Qxh6 {[%emt 0:00:10]} Nd3 {[%emt 0:00:22]} 19. Rcd1 {[%emt 0:01:14]} Nxe1 {[%emt 0:00:09]} 20. Rxe1 {[%emt 0:00:14]} a6 {[%emt 0:03:17]} 21. e5 {[%emt 0:02:24]} Bxg2 {[%emt 0:16:12]} 22. Kxg2 {[%emt 0:00:48]} Rc5 {[%emt 0:05:54]} 23. b4 {[%emt 0:02:39]} Rxc4 {[%emt 0:00:29]} 24. Ne4 {[%emt 0:00:13]} Rxe4 {[%emt 0:01:20]} 25. Rxe4 {[%emt 0:00:28]} Qa8 {[%emt 0:01:27]} 26. f3 {[%emt 0:02:18]} Rc8 {[%emt 0:01:06]} 27. g4 {[%emt 0:07:34]} hxg4 {[%emt 0:02:33]} 28. Rxg4 {[%emt 0:00:16]} Rc2+ {[%emt 0:00:14]} 29. Kg3 {[%emt 0:00:18]} Qf8 {[%emt 0:01:42]} 30. Qg5 {[%emt 0:02:25]} Rb2 {[%emt 0:07:35]} 31. a3 {[%emt 0:02:30]} Rb1 {[%emt 0:01:31]} 32. Kh3 {[%emt 0:02:27]} Qc8 {[%emt 0:06:38]} 33. Rh4 {[%emt 0:01:30]} Rb2 {[%emt 0:03:02]} 34. Qf6 {[%emt 0:00:43]} Rxh2+ {[%emt 0:01:06]} 35. Kxh2 {[%emt 0:00:11]} Qc2+ {[%emt 0:00:05]} 36. Kg3 {[%emt 0:00:13]} Kf8 {[%emt 0:01:28]} 37. Rh8# {[%emt 0:00:12]} 1-0

[Event "FIDE WCCC Girls-10 2024"]
[Site "Montesilvano"]
[Date "2024.11.25"]
[Round "10.21"]
[White "Poliak, Margarita"]
[Black "Mandukhai, Munkhbat"]
[Result "1/2-1/2"]
[ECO "C56"]
[WhiteElo "1514"]
[BlackElo "1645"]
[Annotator "NA RC"]
[PlyCount "33"]
[EventDate "2024.11.18"]
[EventType "swiss"]
[EventCountry "ITA"]
[SourceTitle "playchess.com"]
[Source "ChessBase"]
[SourceQuality "1"]
[TimeControl "5400+30"]

1. e4 {[%emt 0:00:10]} e5 {[%emt 0:00:14]} 2. Nf3 {[%emt 0:00:07]} Nc6 {[%emt 0:00:07]} 3. Bc4 {[%emt 0:00:06]} Nf6 {[%emt 0:01:15]} 4. d4 {[%emt 0:00:09]} exd4 {[%emt 0:00:31]} 5. e5 {[%emt 0:01:03]} d5 {[%emt 0:01:28]} 6. Bb5 {[%emt 0:00:10]} Ne4 {[%emt 0:08:49]} 7. Nxd4 {[%emt 0:02:20]} Bc5 {[%emt 0:05:14]} 8. Be3 {[%emt 0:07:19]} Bxd4 {[%emt 0:03:48]} 9. Bxd4 {[%emt 0:11:50]} O-O {[%emt 0:01:48]} 10. Bxc6 {[%emt 0:00:51]} bxc6 {[%emt 0:00:06]} 11. O-O {[%emt 0:13:54]} Qh4 {[%emt 0:06:58]} 12. f3 {[%emt 0:06:40]} Ng5 {[%emt 0:01:25]} 13. Bf2 {[%emt 0:06:40]} Qh5 {[%emt 0:00:57]} 14. Nc3 {[%emt 0:03:48]} Qg6 {[%emt 0:02:10]} 15. Kh1 {[%emt 0:02:35]} Bf5 {[%emt 0:03:25]} 16. Rc1 {[%emt 0:01:25]} h5 {[%emt 0:01:03]} 17. Ne2 {[%emt 0:02:08]} 1/2-1/2

[Event "FIDE WCCC Girls-10 2024"]
[Site "Montesilvano"]
[Date "2024.11.25"]
[Round "10.22"]
[White "Mohamed Ahmed, Ghidaa"]
[Black "Wang, Mi Ya Mia"]
[Result "1/2-1/2"]
[ECO "A12"]
[WhiteElo "1638"]
[BlackElo "1552"]
[Annotator "NA RC"]
[PlyCount "81"]
[EventDate "2024.11.18"]
[EventType "swiss"]
[EventCountry "ITA"]
[SourceTitle "playchess.com"]
[Source "ChessBase"]
[SourceQuality "1"]
[TimeControl "5400+30"]

1. b3 {[%emt 0:00:03]} d5 {[%emt 0:00:09]} 2. Bb2 {[%emt 0:00:06]} Bg4 {[%emt 0:00:15]} 3. Nf3 {[%emt 0:00:16]} Nd7 {[%emt 0:00:24]} 4. e3 {[%emt 0:00:10]} e6 {[%emt 0:00:27]} 5. Be2 {[%emt 0:00:08]} Ngf6 {[%emt 0:00:31]} 6. c4 {[%emt 0:01:27]} c6 {[%emt 0:00:46]} 7. O-O {[%emt 0:04:48]} Bd6 {[%emt 0:00:34]} 8. d3 {[%emt 0:00:48]} O-O {[%emt 0:00:48]} 9. h3 {[%emt 0:01:32]} Bh5 {[%emt 0:00:28]} 10. Nbd2 {[%emt 0:01:17]} Rc8 {[%emt 0:03:08]} 11. Rc1 {[%emt 0:04:46]} Qe7 {[%emt 0:01:38]} 12. Nd4 {[%emt 0:03:08]} Bxe2 {[%emt 0:01:10]} 13. Qxe2 {[%emt 0:00:55]} a6 {[%emt 0:01:50]} 14. cxd5 {[%emt 0:04:42]} cxd5 {[%emt 0:00:42]} 15. N4f3 {[%emt 0:07:49]} Nc5 {[%emt 0:03:26]} 16. Rfd1 {[%emt 0:06:38]} b5 {[%emt 0:06:00]} 17. Nf1 {[%emt 0:05:17]} Rfd8 {[%emt 0:02:48]} 18. N3h2 {[%emt 0:04:38]} Ncd7 {[%emt 0:19:46]} 19. Ng4 {[%emt 0:02:07]} Nxg4 {[%emt 0:00:45]} 20. Qxg4 {[%emt 0:01:23]} Be5 {[%emt 0:00:41]} 21. Bxe5 {[%emt 0:09:14]} Nxe5 {[%emt 0:00:39]} 22. Qe2 {[%emt 0:00:19]} Qb4 {[%emt 0:01:53]} 23. d4 {[%emt 0:01:07]} Nd7 {[%emt 0:01:22]} 24. Qd2 {[%emt 0:03:40]} Qa3 {[%emt 0:02:48]} 25. Rc2 {[%emt 0:05:33]} Nb6 {[%emt 0:03:11]} 26. Rdc1 {[%emt 0:01:01]} Qe7 {[%emt 0:07:39]} 27. Qa5 {[%emt 0:03:14]} Rxc2 {[%emt 0:00:43]} 28. Rxc2 {[%emt 0:00:07]} Qb7 {[%emt 0:00:22]} 29. a4 {[%emt 0:05:48]} bxa4 {[%emt 0:00:53]} 30. bxa4 {[%emt 0:00:14]} h6 {[%emt 0:01:21]} 31. Nd2 {[%emt 0:03:53]} Rc8 {[%emt 0:02:25]} 32. Rxc8+ {[%emt 0:01:22]} Nxc8 {[%emt 0:00:09]} 33. Qc3 {[%emt 0:02:00]} Ne7 {[%emt 0:01:31]} 34. Nb3 {[%emt 0:00:43]} Nc6 {[%emt 0:01:07]} 35. Nc5 {[%emt 0:01:20]} Qb6 {[%emt 0:00:46]} 36. Nd7 {[%emt 0:02:58]} Qb7 {[%emt 0:00:58]} 37. Nc5 {[%emt 0:00:23]} Qb6 {[%emt 0:02:52]} 38. Nd7 {[%emt 0:00:45]} Qb7 {[%emt 0:01:06]} 39. Nc5 {[%emt 0:00:48]} Qb6 {[%emt 0:12:58]} 40. Nd7 {[%emt 0:00:25]} Qb7 {[%emt 0:00:23]} 41. Nc5 {[%emt 0:00:58]} 1/2-1/2

[Event "FIDE WCCC Girls-10 2024"]
[Site "Montesilvano"]
[Date "2024.11.25"]
[Round "10.23"]
[White "Blakhina Viktoryia"]
[Black "Billod-Laillet, Camille"]
[Result "1-0"]
[ECO "D02"]
[WhiteElo "1436"]
[BlackElo "1732"]
[Annotator "NA RC"]
[PlyCount "97"]
[EventDate "2024.11.18"]
[EventType "swiss"]
[EventCountry "ITA"]
[SourceTitle "playchess.com"]
[Source "ChessBase"]
[SourceQuality "1"]
[TimeControl "5400+30"]

1. d4 {[%emt 0:00:05]} d5 {[%emt 0:00:06]} 2. Bf4 {[%emt 0:00:06]} Nf6 {[%emt 0:00:13]} 3. Nf3 {[%emt 0:00:13]} e6 {[%emt 0:00:05]} 4. e3 {[%emt 0:00:24]} c5 {[%emt 0:00:33]} 5. c3 {[%emt 0:01:09]} Bd6 {[%emt 0:02:16]} 6. Ne5 {[%emt 0:05:12]} Qc7 {[%emt 0:04:05]} 7. Nd2 {[%emt 0:01:49]} Nbd7 {[%emt 0:02:46]} 8. Ndf3 {[%emt 0:01:07]} h6 {[%emt 0:07:20]} 9. h4 {[%emt 0:04:04]} a6 {[%emt 0:13:38]} 10. Bd3 {[%emt 0:07:10]} c4 {[%emt 0:03:55]} 11. Bc2 {[%emt 0:01:03]} b5 {[%emt 0:06:38]} 12. a3 {[%emt 0:15:34]} Ng8 {[%emt 0:06:17]} 13. Nxd7 {[%emt 0:59:04]} Qxd7 {[%emt 0:04:23]} 14. Bxd6 {[%emt 0:00:00]} Qxd6 {[%emt 0:00:54]} 15. Ne5 {[%emt 0:00:00]} h5 {[%emt 0:08:10]} 16. Qf3 {[%emt 0:00:00]} Nf6 {[%emt 0:01:07]} 17. Rh3 {[%emt 0:00:00]} Qc7 {[%emt 0:07:23]} 18. Qf4 {[%emt 0:00:00]} Ng4 {[%emt 0:09:06]} 19. Qg5 {[%emt 0:00:00]} Qe7 {[%emt 0:13:48]} 20. Qxg7 {[%emt 0:00:00]} Qf6 {[%emt 0:00:19]} 21. Qxf6 {[%emt 0:00:00]} Nxf6 {[%emt 0:00:10]} 22. a4 {[%emt 0:00:00]} Bb7 {[%emt 0:00:54]} 23. axb5 {[%emt 0:00:00]} axb5 {[%emt 0:00:16]} 24. Rxa8+ {[%emt 0:00:00]} Bxa8 {[%emt 0:00:07]} 25. Rh1 {[%emt 0:00:00]} Ke7 {[%emt 0:03:59]} 26. Kd2 {[%emt 0:00:00]} Ne4+ {[%emt 0:01:13]} 27. Bxe4 {[%emt 0:00:00]} dxe4 {[%emt 0:00:12]} 28. Ra1 {[%emt 0:00:00]} Rf8 {[%emt 0:02:29]} 29. Ra7+ {[%emt 0:00:00]} Kf6 {[%emt 0:00:44]} 30. Nd7+ {[%emt 0:00:00]} Kg7 {[%emt 0:00:23]} 31. Nxf8 {[%emt 0:00:00]} Bc6 {[%emt 0:00:11]} 32. Nd7 {[%emt 0:00:00]} Kg8 {[%emt 0:00:43]} 33. Rc7 {[%emt 0:00:00]} Bd5 {[%emt 0:00:10]} 34. Nb6 {[%emt 0:00:00]} Kg7 {[%emt 0:00:09]} 35. Nxd5 {[%emt 0:00:00]} exd5 {[%emt 0:00:07]} 36. Rc5 {[%emt 0:00:00]} Kf6 {[%emt 0:00:10]} 37. Rxd5 {[%emt 0:00:00]} Ke6 {[%emt 0:00:12]} 38. Rxh5 {[%emt 0:00:00]} Kd6 {[%emt 0:00:21]} 39. Rxb5 {[%emt 0:00:00]} f5 {[%emt 0:00:12]} 40. Rxf5 {[%emt 0:00:00]} Ke6 {[%emt 0:00:22]} 41. Rf4 {[%emt 0:00:09]} Kd5 {[%emt 0:00:07]} 42. h5 {[%emt 0:00:05]} Kd6 {[%emt 0:00:08]} 43. h6 {[%emt 0:00:05]} Kd5 {[%emt 0:00:10]} 44. h7 {[%emt 0:00:05]} Kd6 {[%emt 0:00:06]} 45. h8=Q {[%emt 0:00:03]} Ke6 {[%emt 0:00:30]} 46. Qf6+ {[%emt 0:00:16]} Kd7 {[%emt 0:00:05]} 47. Rg4 {[%emt 0:00:10]} Kc7 {[%emt 0:00:16]} 48. Rg7+ {[%emt 0:00:06]} Kc8 {[%emt 0:00:10]} 49. Qf8# {[%emt 0:00:06]} 1-0

[Event "FIDE WCCC Girls-10 2024"]
[Site "Montesilvano"]
[Date "2024.11.25"]
[Round "10.24"]
[White "Minzat, Victoria"]
[Black "Tran Hoang Bao An"]
[Result "0-1"]
[ECO "B47"]
[WhiteElo "1505"]
[BlackElo "1714"]
[Annotator "NA RC"]
[PlyCount "118"]
[EventDate "2024.11.18"]
[EventType "swiss"]
[EventCountry "ITA"]
[SourceTitle "playchess.com"]
[Source "ChessBase"]
[SourceQuality "1"]
[TimeControl "5400+30"]

1. e4 {[%emt 0:00:01]} c5 {[%emt 0:00:44]} 2. Nf3 {[%emt 0:00:22]} e6 {[%emt 0:01:12]} 3. d4 {[%emt 0:01:22]} cxd4 {[%emt 0:00:55]} 4. Nxd4 {[%emt 0:00:33]} Nc6 {[%emt 0:01:23]} 5. Nc3 {[%emt 0:01:01]} Qc7 {[%emt 0:02:03]} 6. g3 {[%emt 0:09:43]} a6 {[%emt 0:02:46]} 7. Bg2 {[%emt 0:01:53]} Nf6 {[%emt 0:03:35]} 8. O-O {[%emt 0:02:09]} Bc5 {[%emt 0:03:20]} 9. Nb3 {[%emt 0:00:45]} Be7 {[%emt 0:03:10]} 10. Re1 {[%emt 0:02:17]} O-O {[%emt 0:02:52]} 11. Bf4 {[%emt 0:14:44]} d6 {[%emt 0:02:21]} 12. Be3 {[%emt 0:03:50]} Ne5 {[%emt 0:03:45]} 13. h3 {[%emt 0:01:51]} Nc4 {[%emt 0:02:37]} 14. Rb1 {[%emt 0:01:58]} Nxb2 {[%emt 0:02:20]} 15. Rxb2 {[%emt 0:00:25]} Qxc3 {[%emt 0:01:48]} 16. Bd4 {[%emt 0:00:09]} Qc7 {[%emt 0:01:06]} 17. e5 {[%emt 0:00:43]} Ne8 {[%emt 0:12:49]} 18. exd6 {[%emt 0:04:51]} Bxd6 {[%emt 0:00:44]} 19. Qd2 {[%emt 0:01:13]} Bd7 {[%emt 0:01:42]} 20. Na5 {[%emt 0:01:11]} Bc6 {[%emt 0:02:27]} 21. Nxb7 {[%emt 0:01:42]} Bxg2 {[%emt 0:01:04]} 22. Kxg2 {[%emt 0:02:27]} Rb8 {[%emt 0:03:05]} 23. Reb1 {[%emt 0:01:38]} Ba3 {[%emt 0:04:49]} 24. Rb3 {[%emt 0:00:28]} Nd6 {[%emt 0:00:51]} 25. Nxd6 {[%emt 0:06:34]} Bxd6 {[%emt 0:01:14]} 26. Qc3 {[%emt 0:03:05]} e5 {[%emt 0:05:08]} 27. Qxc7 {[%emt 0:00:51]} Bxc7 {[%emt 0:00:09]} 28. Rxb8 {[%emt 0:01:42]} Rxb8 {[%emt 0:00:06]} 29. Rxb8+ {[%emt 0:00:10]} Bxb8 {[%emt 0:00:04]} 30. Bc5 {[%emt 0:00:12]} f5 {[%emt 0:01:02]} 31. Kf3 {[%emt 0:00:41]} Kf7 {[%emt 0:00:38]} 32. Ke2 {[%emt 0:00:19]} Ke6 {[%emt 0:00:04]} 33. Bf8 {[%emt 0:01:21]} g6 {[%emt 0:00:20]} 34. Kd3 {[%emt 0:00:44]} Ba7 {[%emt 0:00:20]} 35. f3 {[%emt 0:00:50]} h5 {[%emt 0:02:01]} 36. Ke2 {[%emt 0:02:44]} Kd5 {[%emt 0:00:18]} 37. Bb4 {[%emt 0:00:47]} Kc4 {[%emt 0:00:22]} 38. Be1 {[%emt 0:00:49]} Bb6 {[%emt 0:02:27]} 39. Bd2 {[%emt 0:01:17]} a5 {[%emt 0:00:31]} 40. g4 {[%emt 0:05:38]} hxg4 {[%emt 0:02:45]} 41. fxg4 {[%emt 0:01:55]} f4 {[%emt 0:04:27]} 42. h4 {[%emt 0:00:38]} a4 {[%emt 0:03:16]} 43. h5 {[%emt 0:00:27]} g5 {[%emt 0:00:30]} 44. h6 {[%emt 0:24:30]} Bd8 {[%emt 0:00:54]} 45. Ba5 {[%emt 0:00:00]} Bf6 {[%emt 0:00:52]} 46. h7 {[%emt 0:00:00]} e4 {[%emt 0:00:43]} 47. a3 {[%emt 0:00:00]} f3+ {[%emt 0:00:12]} 48. Ke1 {[%emt 0:00:00]} e3 {[%emt 0:00:18]} 49. Bb4 {[%emt 0:00:00]} Be5 {[%emt 0:00:55]} 50. Kf1 {[%emt 0:00:00]} Kd5 {[%emt 0:00:32]} 51. Kg1 {[%emt 0:00:00]} Ke4 {[%emt 0:00:59]} 52. c4 {[%emt 0:00:00]} f2+ {[%emt 0:00:19]} 53. Kg2 {[%emt 0:00:00]} Kd3 {[%emt 0:00:21]} 54. Kf1 {[%emt 0:00:00]} Bd4 {[%emt 0:00:10]} 55. Kg2 {[%emt 0:00:00]} e2 {[%emt 0:00:15]} 56. h8=Q {[%emt 0:00:00]} f1=Q+ {[%emt 0:00:20]} 57. Kh2 {[%emt 0:00:00]} Bg1+ {[%emt 0:01:01]} 58. Kg3 {[%emt 0:00:00]} Qf2+ {[%emt 0:00:09]} 59. Kh3 {[%emt 0:00:00]} Qh2# {[%emt 0:00:11]} 0-1

[Event "FIDE WCCC Girls-10 2024"]
[Site "Montesilvano"]
[Date "2024.11.25"]
[Round "10.25"]
[White "Trzcinska, Weronika"]
[Black "Aragonda, Sahasra"]
[Result "1/2-1/2"]
[ECO "B30"]
[WhiteElo "1653"]
[BlackElo "1526"]
[Annotator "NA RC"]
[PlyCount "89"]
[EventDate "2024.11.18"]
[EventType "swiss"]
[EventCountry "ITA"]
[SourceTitle "playchess.com"]
[Source "ChessBase"]
[SourceQuality "1"]
[TimeControl "5400+30"]

1. e4 {[%emt 0:00:02]} c5 {[%emt 0:00:09]} 2. Nf3 {[%emt 0:00:36]} g6 {[%emt 0:00:09]} 3. Nc3 {[%emt 0:02:33]} Bg7 {[%emt 0:00:31]} 4. Bc4 {[%emt 0:01:32]} Nc6 {[%emt 0:00:52]} 5. O-O {[%emt 0:01:56]} e6 {[%emt 0:00:18]} 6. h3 {[%emt 0:04:46]} Nge7 {[%emt 0:00:37]} 7. d3 {[%emt 0:03:12]} O-O {[%emt 0:04:09]} 8. Bf4 {[%emt 0:04:19]} d5 {[%emt 0:10:04]} 9. exd5 {[%emt 0:01:00]} exd5 {[%emt 0:00:21]} 10. Bb5 {[%emt 0:03:28]} h6 {[%emt 0:06:46]} 11. Re1 {[%emt 0:09:01]} Be6 {[%emt 0:03:14]} 12. Bxc6 {[%emt 0:06:27]} Nxc6 {[%emt 0:00:09]} 13. Ne5 {[%emt 0:05:01]} Nxe5 {[%emt 0:08:23]} 14. Bxe5 {[%emt 0:01:32]} Qg5 {[%emt 0:05:01]} 15. Bxg7 {[%emt 0:01:30]} Kxg7 {[%emt 0:00:12]} 16. Qf3 {[%emt 0:00:31]} Rad8 {[%emt 0:05:15]} 17. Qg3 {[%emt 0:06:34]} Qxg3 {[%emt 0:00:10]} 18. fxg3 {[%emt 0:00:06]} b6 {[%emt 0:03:10]} 19. Ne2 {[%emt 0:03:16]} g5 {[%emt 0:03:15]} 20. g4 {[%emt 0:00:39]} Rfe8 {[%emt 0:04:00]} 21. Ng3 {[%emt 0:00:44]} Kg6 {[%emt 0:06:43]} 22. Re2 {[%emt 0:01:47]} Bc8 {[%emt 0:03:49]} 23. Rf2 {[%emt 0:01:40]} Re7 {[%emt 0:05:53]} 24. Raf1 {[%emt 0:00:42]} Rd6 {[%emt 0:05:44]} 25. Nh5 {[%emt 0:01:52]} d4 {[%emt 0:05:55]} 26. Rf6+ {[%emt 0:02:39]} Rxf6 {[%emt 0:00:15]} 27. Rxf6+ {[%emt 0:00:06]} Kh7 {[%emt 0:00:14]} 28. Kf2 {[%emt 0:00:44]} Be6 {[%emt 0:02:07]} 29. Rf3 {[%emt 0:00:53]} Bxa2 {[%emt 0:02:08]} 30. Nf6+ {[%emt 0:02:10]} Kg6 {[%emt 0:03:32]} 31. c3 {[%emt 0:01:43]} dxc3 {[%emt 0:02:02]} 32. bxc3 {[%emt 0:00:17]} Re6 {[%emt 0:03:00]} 33. Nd7 {[%emt 0:02:47]} Rd6 {[%emt 0:01:28]} 34. Ne5+ {[%emt 0:00:13]} Kg7 {[%emt 0:01:36]} 35. c4 {[%emt 0:02:09]} Rf6 {[%emt 0:00:30]} 36. Rxf6 {[%emt 0:01:49]} Kxf6 {[%emt 0:00:09]} 37. Nc6 {[%emt 0:00:20]} a5 {[%emt 0:00:55]} 38. Ke3 {[%emt 0:01:53]} a4 {[%emt 0:00:46]} 39. Na7 {[%emt 0:01:29]} Bb3 {[%emt 0:01:38]} 40. Nb5 {[%emt 0:01:48]} Ke5 {[%emt 0:00:33]} 41. g3 {[%emt 0:01:37]} f5 {[%emt 0:00:58]} 42. gxf5 {[%emt 0:00:36]} Kxf5 {[%emt 0:00:08]} 43. Nd6+ {[%emt 0:08:44]} Ke5 {[%emt 0:00:51]} 44. Nb5 {[%emt 0:00:33]} h5 {[%emt 0:00:37]} 45. Na3 {[%emt 0:01:38]} 1/2-1/2